fUSD/lending_fUSD_20241112
["ID","MTS","AMOUNT","RATE_DAILY","PERIOD"]
[342077310,1731409840455,-882.08387616,0.00013,2]
[342077311,1731409840466,-659.97732,0.00013,2]
[342077312,1731409840477,-428.19592875,0.00013,2]
[342077313,1731409840487,-1717.66,0.00013,2]
[342077314,1731409840501,-226110.2638705,0.00013,2]
[342077315,1731409840513,-6601.5520943,0.00013,2]
[342077316,1731409840524,-3994.90374,0.00013,2]
[342077317,1731409840536,-2850.60796882,0.00013,2]
[342077318,1731409840547,-6023.93985903,0.00013,2]
[342077319,1731409840558,-994.20051966,0.00013,2]
[342077320,1731409840568,-2361.64370616,0.00013,2]
[342077321,1731409840579,-2333.19504004,0.00013,2]
[342077322,1731409840590,-13176.52150316,0.00013,2]
[342077323,1731409840601,-17443.8,0.00013,2]
[342077324,1731409840616,-855.0542,0.00013,2]
[342077325,1731409840627,-4750.59463285,0.00013,2]
[342077326,1731409840907,-1748.92,0.00013,2]
[342077327,1731409840927,-7801.9644,0.00013,2]
[342077328,1731409840938,-4342.08849,0.00013,2]
[342077329,1731409840949,-1635.94999992,0.00013,2]
[342077330,1731409840960,-4071.81349998,0.00013,2]
[342077331,1731409840972,-329.15947992,0.00013,2]
[342077332,1731409840983,-26830.101575,0.00013,2]
[342077333,1731409840994,-8597.6,0.00013,2]
[342077334,1731409841005,-7548.03267674,0.00013,2]
[342077335,1731409841025,-1117.5,0.00013,2]
[342077336,1731409841104,-432.28785,0.00013,2]
[342077337,1731409841118,-162000.0,0.00013,2]
[342077377,1731409843146,-300.0,0.00012999,2]
[342077379,1731409843157,-15625.1082634,0.00013,2]
[342077382,1731409843168,-5882.3443755,0.00013,2]
[342077384,1731409843180,-13185.0396431,0.00013,2]
[342077387,1731409843192,-2641.44494698,0.00013,2]
[342077389,1731409843204,-3763.81392146,0.00013,2]
[342077395,1731409843252,-21029.3668,0.00013,2]
[342077396,1731409843265,-1626.84857511,0.00013,2]
[342077397,1731409843277,-23171.596994,0.00013,2]
[342077398,1731409843290,-4345.672497,0.00013,2]
[342077399,1731409843345,-4434.86258186,0.00013,2]
[342077400,1731409843377,-12813.3,0.00013,2]
[342077401,1731409843463,-2826.19057848,0.00013,2]
[342077402,1731409843475,-849.214965,0.00013,2]
[342077403,1731409843486,-256349.97,0.00013,2]
[342077404,1731409843530,-7808.40038675,0.00013,2]
[342077405,1731409843541,-1058.66594576,0.00013,2]
[342077406,1731409843553,-4156.11938298,0.00013,2]
[342077407,1731409843565,-11490.58125438,0.00013,2]
[342077408,1731409843577,-6578.99102642,0.00013,2]
[342077409,1731409843588,-463.776336,0.00013,2]
[342077444,1731409845984,-15283.75980074,0.00013,2]
[342077448,1731409845997,-9831.76687634,0.00013,2]
[342077450,1731409846008,-8905.73966181,0.00013,2]
[342077452,1731409846020,-6978.73366111,0.00013,2]
[342077460,1731409846083,-271773.17059695,0.00013,2]
[342077482,1731409846392,-765413.2132493,0.00013,2]
[342077485,1731409846415,-21883.91379,0.00013,2]
[342077488,1731409846448,-316.189975,0.00013,2]
[342077490,1731409846466,-17408.13570265,0.00013,2]
[342077494,1731409846507,-6574.19999992,0.00013,2]
[342077500,1731409846537,-1256.00170347,0.00013,2]
[342077502,1731409846554,-2087.2093109,0.00013,2]
[342077503,1731409846566,-8757.2796,0.00013,2]
[342077521,1731409846681,-869.79,0.00013,2]
[342077562,1731409848091,-61661.02918735,0.00013,2]
[342077563,1731409848113,-381.42680699,0.00013,2]
[342077564,1731409848148,-1714.93381965,0.00013,2]
[342077565,1731409848159,-34914.30248078,0.00013,2]
[342077566,1731409848171,-8687.29302113,0.00013,2]
[342077567,1731409892183,-3947.68102112,0.000212,30]
[342077568,1731409892205,-4000.0,0.000212,30]
[342077569,1731409892228,-500.0,0.000215,30]
[342077570,1731409892252,-2000.74,0.00022,30]
[342077571,1731409892277,-1673.58,0.00022137,30]
[342077572,1731409892303,-845.26008032,0.00024,30]
[342077573,1731409892324,-500.0,0.00024,30]
[342077574,1731409892346,-2943.12279248,0.00024,30]
[342077580,1731410092253,165.62,9.823e-05,2]
[342077581,1731410144675,250.0,0.00012251,2]
[342077583,1731410148892,150.0,0.00012249,2]
[342077584,1731410159754,6777.0,0.00014,7]
[342077585,1731410253041,19010.71,0.00012,2]
[342077586,1731410267200,150.0,0.00012267,2]
[342077588,1731410287869,1000.0,0.00012267,2]
[342077589,1731410300328,1519.16,0.0001035,2]
[342077590,1731410310745,169.79,8.219e-05,2]
[342077591,1731410328869,180.0,0.00027,60]
[342077595,1731410393989,1589.9,0.00022137,30]
[342077596,1731410434396,166.62,0.00012191,2]
[342077597,1731410447490,199.62,0.00010959,2]
[342077599,1731410540614,179.74,9.767e-05,2]
[342077600,1731410553515,250.0,0.00012208,2]
[342077601,1731410564745,549.41,0.00012203,2]
[342077604,1731410604900,940.86,0.00012057,2]
[342077605,1731410605384,23900.0,0.00012056,2]
[342077608,1731410720468,2819.64851759,9e-05,2]
[342077609,1731410725931,5243.08,0.00027,120]
[342077615,1731410784522,165.62,9.592e-05,2]
[342077616,1731410805707,500.0,0.00027,60]
[342077617,1731410841515,205.0,9.8e-05,2]
[342077618,1731410851643,1075.4949151,0.00027,60]
[342077619,1731410879177,947.2160229,0.00013,15]
[342077620,1731410881782,7394.07759522,0.0001,2]
[342077621,1731410900298,150.0,0.00011925,2]
[342077623,1731410919993,675.11551689,0.00027,120]
[342077624,1731410921712,508.85733432,0.00027,120]
[342077626,1731410926577,2000.0,0.00027,120]
[342077628,1731410927909,305.84153565,0.00027,120]
[342077629,1731410961192,1000.0,0.00011907,2]
[342077631,1731410983751,250.0,0.00011983,2]
[342077634,1731411012090,150.0,0.00012055,2]
[342077644,1731411032166,-188.22,0.00012329,2]
[342077645,1731411032175,-193.0,0.00012344,2]
[342077646,1731411032184,-1519.16,0.00012613,2]
[342077647,1731411032194,-300.0,0.00012679,2]
[342077648,1731411032203,-150.0,0.00012679,2]
[342077649,1731411032212,-19800.0115152,0.0001268,2]
[342077653,1731411032383,-1979.45,0.0001268,2]
[342077654,1731411032464,-7657.65,0.0001268,2]
[342077655,1731411032475,-8696.7738,0.0001268,2]
[342077656,1731411032486,-437.13,0.0001268,2]
[342077657,1731411032546,-1743.2940095,0.0001268,2]
[342077677,1731411038179,-4243.52578353,0.0001268,2]
[342077696,1731411038399,-1810.89346937,0.0001268,2]
[342077698,1731411038414,-2383.71805155,0.0001268,2]
[342077699,1731411038438,-13515.4108654,0.0001268,2]
[342077700,1731411038449,-689.76,0.0001268,2]
[342077701,1731411038626,-109704.29037854,0.0001268,2]
[342077702,1731411038640,-169.79,0.00012785,2]
[342077703,1731411038649,-697.95,0.00012799,2]
[342077704,1731411038659,-216.5799,0.000128,2]
[342077705,1731411038668,-58019.8202,0.000128,2]
[342077706,1731411038678,-426.36555989,0.00012811,2]
[342077707,1731411038687,-4221.68,0.00012814,2]
[342077708,1731411038697,-549.41,0.00012814,2]
[342077709,1731411038706,-1918.351,0.00012865,2]
[342077710,1731411038716,-179.735,0.0001287,2]
[342077711,1731411038725,-887.2663,0.00012898,2]
[342077712,1731411038734,-500.0,0.00012898,2]
[342077713,1731411038744,-33281.53,0.00012898,2]
[342077714,1731411038754,-1000.0,0.00012898,2]
[342077715,1731411038763,-487.3464,0.00012899,2]
[342077716,1731411038773,-37873.4214,0.00012899,2]
[342077717,1731411038782,-765.0705,0.00012899,2]
[342077718,1731411038792,-200.0,0.000129,2]
[342077719,1731411038802,-247.33446363,0.000129,2]
[342077720,1731411038815,-200.0,0.000129,2]
[342077721,1731411039025,-500.0,0.000129,2]
[342077722,1731411039034,-167.22271843,0.000129,2]
[342077723,1731411039045,-5823.9661,0.000129,2]
[342077724,1731411039054,-28005.412,0.000129,2]
[342077725,1731411039064,-621.00752348,0.000129,2]
[342077726,1731411039073,-153.37889064,0.000129,2]
[342077727,1731411039082,-154.62890664,0.000129,2]
[342077728,1731411039091,-320.69312526,0.000129,2]
[342077729,1731411039100,-15548.53807265,0.000129,2]
[342077730,1731411039109,-337.49650544,0.000129,2]
[342077731,1731411039118,-188.22,0.00012945,2]
[342077732,1731411039127,-500.0,0.00012973,2]
[342077733,1731411039142,-500.0,0.00012973,2]
[342077734,1731411039152,-500.0,0.00012973,2]
[342077735,1731411039161,-501.58749823,0.00012973,2]
[342077736,1731411039170,-503.42383767,0.00012973,2]
[342077737,1731411039179,-458.00250268,0.00012989,2]
[342077738,1731411039188,-458.00250268,0.0001299,2]
[342077739,1731411039196,-458.00250268,0.0001299,2]
[342077740,1731411039206,-151.27605965,0.00012999,2]
[342077741,1731411039215,-500.0,0.00012999,2]
[342077743,1731411039224,-500.0,0.00012999,2]
[342077745,1731411039233,-350.0,0.00012999,2]
[342077747,1731411039242,-500.0,0.00012999,2]
[342077749,1731411039251,-500.0,0.00012999,2]
[342077751,1731411039260,-302.66375427,0.00012999,2]
[342077753,1731411039269,-3314.16759968,0.00012999,2]
[342077755,1731411039278,-304741.85026471,0.00012999,2]
[342077757,1731411039287,-500.0,0.00012999,2]
[342077759,1731411039296,-500.0,0.00012999,2]
[342077760,1731411039305,-350.0,0.00012999,2]
[342077761,1731411039313,-500.0,0.00012999,2]
[342077762,1731411039322,-222.90045268,0.00012999,2]
[342077763,1731411039331,-208.36983517,0.00012999,2]
[342077765,1731411039340,-160.59439503,0.00012999,2]
[342077767,1731411039349,-468.81978939,0.00012999,2]
[342077769,1731411039358,-806560.05325295,0.00013,2]
[342077771,1731411039369,-1634.68330247,0.00013,2]
[342077776,1731411040308,-7597.9,0.00013,2]
[342077777,1731411040319,-2499.58000002,0.00013,2]
[342077778,1731411040329,-1008.63573648,0.00013,2]
[342077779,1731411040341,-386.844146,0.00013,2]
[342077780,1731411040383,-261.15636947,0.00013,2]
[342077781,1731411040394,-19807.48976552,0.00013,2]
[342077782,1731411040405,-16163.3801469,0.00013,2]
[342077957,1731411043208,-500.0,0.00012973,2]
[342077958,1731411043217,-9016.05023628,0.00013,2]
[342077960,1731411043420,-407.54407,0.00013,2]
[342077962,1731411043432,-348277.68860616,0.00013,2]
[342077963,1731411043444,-431850.0,0.00013,2]
[342077964,1731411043456,-6458.94944374,0.00013,2]
[342077965,1731411043468,-3425.99999811,0.00013,2]
[342077966,1731411043479,-1175.85073606,0.00013,2]
[342077967,1731411043490,-10178.19415372,0.00013,2]
[342077968,1731411043501,-5541.8520721,0.00013,2]
[342077969,1731411043512,-2922.06023369,0.00013,2]
[342077970,1731411043524,-1062.08228668,0.00013,2]
[342077971,1731411043562,-4359.355,0.00013,2]
[342077972,1731411043592,-4206.62928255,0.00013,2]
[342077993,1731411046350,-65324.01464535,0.00013,2]
[342077997,1731411046365,-1225.44765953,0.00013,2]
[342077999,1731411046428,-1534954.56953928,0.00013,2]
[342078000,1731411046444,-17526.35344801,0.00013,2]
[342078001,1731411046520,-876.7422844,0.00013,2]
[342078002,1731411046561,-1700.910084,0.00013,2]
[342078003,1731411046576,-843.55149789,0.00013,2]
[342078016,1731411096877,565.18,0.00010959,2]
[342078017,1731411107459,470.99,0.00010959,2]
[342078018,1731411118010,392.49,0.00010959,2]
[342078033,1731411128566,327.07,0.00010959,2]
[342078034,1731411139088,327.07,0.00010959,2]
[342078035,1731411149614,218.05,0.00010959,2]
[342078036,1731411160157,181.71,0.00010959,2]
[342078037,1731411170678,151.42,0.00010959,2]
[342078038,1731411181220,757.14,0.00010959,2]
[342078039,1731411186927,1350.0,0.0001,10]
[342078040,1731411206413,1950.9,0.00010066,2]
[342078041,1731411212915,798.81193599,0.00012247,2]
[342078042,1731411213217,625.0153944,0.00012243,2]
[342078043,1731411219937,343.37,8.219e-05,2]
[342078044,1731411220260,343.37,0.00011644,2]
[342078045,1731411244495,1990.08,0.00011518,2]
[342078046,1731411261601,172.25,9.195e-05,2]
[342078047,1731411261823,172.25,0.00010727,2]
[342078048,1731411262057,172.25,0.00012259,2]
[342078049,1731411262534,250.0,0.00011493,2]
[342078050,1731411269950,1698.75,0.00011518,2]
[342078051,1731411273633,1510.4,0.00022137,30]
[342078052,1731411275182,23900.0,0.00011518,2]
[342078053,1731411303167,200.0,0.00012311,2]
[342078054,1731411307206,523.77,0.00011518,2]
[342078057,1731411360044,9660.85,0.00012055,2]
[342078058,1731411383226,889.22,0.00011495,2]
[342078059,1731411383441,889.22,0.0001207,2]
[342078060,1731411388962,1495.77,0.00011488,2]
[342078062,1731411411377,1121.87,0.00011488,2]
[342078065,1731411430771,500.0,0.00011488,2]
[342078066,1731411443364,799.87,0.00011488,2]
[342078067,1731411447083,322.86,0.00011488,2]
[342078068,1731411452808,645.6,0.00011488,2]
[342078069,1731411459913,161.51,0.00011488,2]
[342078070,1731411532902,1893.25,0.00011471,2]
[342078071,1731411562589,2844.36,0.00011488,2]
[342078074,1731411598735,285.9,0.00011486,2]
[342078075,1731411598853,200.0,0.00011486,2]
[342078076,1731411610411,162.99,9.176e-05,2]
[342078077,1731411610570,162.99,0.0001147,2]
[342078079,1731411657048,1712.94,0.0001149,2]
[342078081,1731411692973,1614.53,0.00011485,2]
[342078082,1731411695837,150.0,0.00011485,2]
[342078083,1731411700935,1259.68,0.00011485,2]
[342078084,1731411714860,150.0,0.00012055,2]
[342078085,1731411720192,251.81808001,0.00011995,2]
[342078088,1731411726817,1627.62,0.00011496,2]
[342078089,1731411772621,1000.0,0.00011518,2]
[342078090,1731411805131,250.0,0.00011496,2]
[342078091,1731411823084,516.31,0.0001149,2]
[342078092,1731411850288,159.76,0.00011518,2]
[342078095,1731411877861,1887.25,9.6e-05,2]
[342078096,1731411877999,1887.25,0.00011864,2]
[342078098,1731411941130,239.98,8.219e-05,2]
[342078099,1731411941332,239.98,0.00011644,2]
[342078100,1731411947466,23900.0,0.00011491,2]
[342078102,1731411969585,250.0,0.00011502,2]
[342078103,1731411972710,1434.88,0.00022137,30]
[342078104,1731412000733,2751.0,0.00011507,2]
[342078105,1731412007011,172.25,9.19e-05,2]
[342078106,1731412024604,808.93,0.00011489,2]
[342078109,1731412078245,533.53,0.00011488,2]
[342078110,1731412078464,533.53,0.00012062,2]
[342078111,1731412128916,500.0,0.00011504,2]
[342078120,1731412174369,819.57,0.00011518,2]
[342078121,1731412176369,283.52,0.00011495,2]
[342078142,1731412232625,-188.23,0.00012329,2]
[342078143,1731412232635,-150.0,0.00012329,2]
[342078144,1731412232644,-1110.02,0.0001234,2]
[342078145,1731412232654,-1110.02,0.00012343,2]
[342078146,1731412232663,-650.25999542,0.00012347,2]
[342078147,1731412232762,-696.82577797,0.00012347,2]
[342078148,1731412232771,-1110.02,0.00012347,2]
[342078149,1731412232780,-780.19946517,0.0001235,2]
[342078150,1731412232882,-329.82053483,0.0001235,2]
[342078151,1731412232891,-503.66621282,0.00012353,2]
[342078153,1731412232903,-606.35378718,0.00012353,2]
[342078154,1731412232912,-57.60279456,0.00012356,2]
[342078165,1731412238516,-639.61898003,0.00012356,2]
[342078166,1731412238528,-412.79822541,0.00012356,2]
[342078167,1731412238537,-300.0,0.00012359,2]
[342078168,1731412238546,-1110.02,0.0001236,2]
[342078169,1731412238556,-4221.68,0.0001236,2]
[342078170,1731412238565,-1110.02,0.00012363,2]
[342078171,1731412238574,-1110.02,0.00012366,2]
[342078172,1731412238584,-1110.02,0.00012369,2]
[342078173,1731412238593,-1110.02,0.00012373,2]
[342078174,1731412238602,-1110.02,0.00012376,2]
[342078175,1731412238612,-1110.02,0.00012379,2]
[342078176,1731412238622,-1110.02,0.00012382,2]
[342078177,1731412238631,-1110.02,0.00012386,2]
[342078178,1731412238640,-1110.02,0.00012389,2]
[342078179,1731412238649,-1110.02,0.00012392,2]
[342078180,1731412238658,-1110.02,0.00012396,2]
[342078181,1731412238667,-1110.02,0.00012399,2]
[342078182,1731412238676,-1110.02,0.00012402,2]
[342078183,1731412238685,-150.0,0.00012579,2]
[342078184,1731412238694,-7593.433,0.0001258,2]
[342078185,1731412238703,-503.7895,0.0001258,2]
[342078186,1731412238713,-562.4397,0.0001258,2]
[342078187,1731412238722,-5823.9661,0.000126,2]
[342078188,1731412238732,-487.3464,0.000126,2]
[342078189,1731412238741,-887.2663,0.000126,2]
[342078190,1731412238750,-500.0,0.000126,2]
[342078191,1731412238760,-1000.0,0.000126,2]
[342078192,1731412238769,-216.5799,0.000126,2]
[342078193,1731412238778,-4744.07348111,0.000126,2]
[342078194,1731412238787,-4744.07348102,0.00012633,2]
[342078195,1731412238797,-533.53,0.00012637,2]
[342078196,1731412238806,-4744.07348102,0.00012667,2]
[342078197,1731412238817,-166.63,0.00012687,2]
[342078198,1731412238826,-1018.4223,0.000127,2]
[342078199,1731412238835,-76836.80562918,0.000127,2]
[342078200,1731412238847,-8610.0862004,0.000127,2]
[342078201,1731412238859,-5837.47668,0.000127,2]
[342078202,1731412238870,-2777.38337288,0.000127,2]
[342078203,1731412238882,-8757.4,0.000127,2]
[342078204,1731412238937,-2599.54072712,0.000127,2]
[342078205,1731412238948,-4231.49009801,0.000127,2]
[342078206,1731412238960,-4357.00991366,0.000127,2]
[342078207,1731412238971,-12326.31687875,0.000127,2]
[342078208,1731412238980,-100000.0,0.000127,2]
[342078209,1731412238989,-631.6596,0.000127,2]
[342078210,1731412238998,-4744.07348102,0.000127,2]
[342078211,1731412239007,-163.78,0.00012715,2]
[342078228,1731412239241,-4744.07348102,0.00012733,2]
[342078233,1731412239275,-392.87943248,0.00012757,2]
[342078235,1731412239284,-4744.07348102,0.00012767,2]
[342078237,1731412239294,-4744.07348102,0.000128,2]
[342078239,1731412239303,-4744.07348102,0.00012833,2]
[342078241,1731412239312,-4744.07348102,0.00012867,2]
[342078243,1731412239321,-1918.351,0.0001287,2]
[342078245,1731412239330,-3000.0,0.0001287,2]
[342078247,1731412239339,-3000.0,0.0001287,2]
[342078249,1731412239348,-179.735,0.00012871,2]
[342078251,1731412239357,-200.0,0.000129,2]
[342078253,1731412239367,-765.0705,0.000129,2]
[342078254,1731412239375,-200.0,0.000129,2]
[342078256,1731412239384,-153.37889064,0.000129,2]
[342078258,1731412239394,-621.00752348,0.000129,2]
[342078260,1731412239403,-15548.53807265,0.000129,2]
[342078262,1731412239412,-154.62890664,0.000129,2]
[342078264,1731412239422,-337.49650544,0.000129,2]
[342078266,1731412239431,-645.6,0.00012924,2]
[342078268,1731412239440,-283.52,0.00012932,2]
[342078270,1731412239449,-1000.0,0.00012957,2]
[342078272,1731412239458,-501.58749823,0.00012973,2]
[342078274,1731412239467,-503.42383767,0.00012973,2]
[342078276,1731412239476,-500.0,0.00012973,2]
[342078278,1731412239485,-500.0,0.00012973,2]
[342078280,1731412239494,-500.0,0.00012973,2]
[342078282,1731412239503,-458.00250268,0.00012989,2]
[342078284,1731412239512,-458.00250268,0.0001299,2]
[342078286,1731412239521,-458.00250268,0.0001299,2]
[342078288,1731412239530,-7417.65576476,0.00012997,2]
[342078290,1731412239540,-160.59439503,0.00012999,2]
[342078292,1731412239549,-621.8701358,0.00012999,2]
[342078294,1731412239559,-151.27605965,0.00012999,2]
[342078296,1731412239568,-208.36983517,0.00012999,2]
[342078298,1731412239577,-390.79912628,0.00012999,2]
[342078300,1731412239586,-3314.16759968,0.00012999,2]
[342078302,1731412239595,-500.0,0.00012999,2]
[342078304,1731412239604,-500.0,0.00012999,2]
[342078306,1731412239614,-498.77559825,0.00012999,2]
[342078308,1731412239624,-304741.85026472,0.00012999,2]
[342078310,1731412239633,-1000.0,0.00012999,2]
[342078312,1731412239642,-1411321.86875502,0.00013,2]
[342078314,1731412239654,-2289.08489471,0.00013,2]
[342078328,1731412239773,-1351566.90565289,0.00013,2]
[342078348,1731412240461,-1198.97084542,0.000129,2]
[342078349,1731412240473,-1014.10000005,0.000129,2]
[342078350,1731412240649,-2100.81486589,0.000129,2]
[342078351,1731412240661,-430.18776966,0.000129,2]
[342078352,1731412240670,-111749.23355592,0.00013,2]
[342078353,1731412240681,-3269.13,0.00013,2]
[342078390,1731412245045,-320.69312526,0.000129,2]
[342078392,1731412245055,-548.43687744,0.00013,2]
[342078395,1731412245067,-262706.24494124,0.00013,2]
[342078410,1731412245187,-11964.5861733,0.00013,2]
[342078413,1731412245199,-2821.9145403,0.00013,2]
[342078415,1731412245211,-306884.80752335,0.00013,2]
[342078417,1731412245222,-11781.86576025,0.00013,2]
[342078419,1731412245233,-4521.58568315,0.00013,2]
[342078421,1731412245245,-8957.9949489,0.00013,2]
[342078423,1731412245256,-11214.77924176,0.00013,2]
[342078425,1731412245267,-2380.53736714,0.00013,2]
[342078544,1731412246593,-351.22440175,0.00012999,2]
[342078546,1731412246603,-10940.24324927,0.00013,2]
[342078548,1731412246617,-313.06330969,0.00013,2]
[342078551,1731412246632,-573.27155235,0.00013,2]
[342078553,1731412246645,-14872.27539215,0.00013,2]
[342078555,1731412246657,-1112.69380233,0.00013,2]
[342078557,1731412246669,-173119.4969341,0.00013,2]
[342078566,1731412246742,-17583.8976,0.00013,2]
[342078568,1731412246756,-31988.70935847,0.00013,2]
[342078570,1731412246767,-3877.36932982,0.00013,2]
[342078572,1731412246780,-3389.70114476,0.00013,2]
[342078574,1731412246791,-432.09496654,0.00013,2]
[342078576,1731412246803,-8785.03155376,0.00013,2]
[342079009,1731412365895,410.0,0.00012,2]
[342079010,1731412435667,162.99,9.969e-05,2]
[342079011,1731412543765,-159.76,0.00012312,2]
[342079013,1731412631033,179.98,8.219e-05,2]
[342079014,1731412634577,1706.02,0.00010279,2]
[342079016,1731412679680,23900.0,0.00012157,2]
[342079017,1731412699642,166.2,0.00012157,2]
[342079019,1731412783660,213.41,0.00012063,2]
[342079020,1731412844117,294.0,0.00024,30]
[342079021,1731412906475,242.52,0.00011988,2]
[342079023,1731412994874,1203.01,0.00012067,2]
[342079024,1731412995123,1363.13,0.00022137,30]
[342079026,1731413014822,1578.87,0.00012131,2]
[342079028,1731413074806,150.0,0.00012166,2]
[342079031,1731413140352,250.0,0.00012227,2]
[342079033,1731413282986,250.0,0.00012136,2]
[342079034,1731413285692,1000.0,0.0001221,2]
[342079036,1731413320144,150.0,0.00012272,2]
[342079041,1731413388691,179.98,8.219e-05,2]
[342079044,1731413434172,-188.23,0.00012329,2]
[342079045,1731413434182,-150.0,0.00012499,2]
[342079046,1731413434192,-300.0,0.00012499,2]
[342079047,1731413434202,-8821.8618,0.000125,2]
[342079048,1731413434213,-3410.1683,0.000125,2]
[342079049,1731413434223,-659.0352,0.000125,2]
[342079050,1731413434233,-697.95,0.000125,2]
[342079051,1731413434243,-161.96932345,0.000125,2]
[342079052,1731413434253,-1706.02,0.00012543,2]
[342079053,1731413434262,-43315.72101409,0.000126,2]
[342079054,1731413434297,-18717.67578591,0.000126,2]
[342079055,1731413434306,-37873.4214,0.000126,2]
[342079056,1731413434316,-8424.3703,0.000126,2]
[342079057,1731413434325,-46220.5454,0.000126,2]
[342079058,1731413434335,-1000.0,0.000126,2]
[342079059,1731413434344,-28005.412,0.000126,2]
[342079060,1731413434357,-161.96932345,0.000126,2]
[342079061,1731413434366,-392.87943249,0.00012609,2]
[342079062,1731413434376,-213.41,0.00012666,2]
[342079063,1731413434386,-161.96932345,0.000127,2]
[342079064,1731413434396,-161.96932345,0.000128,2]
[342079065,1731413434405,-1604.412,0.0001287,2]
[342079066,1731413434415,-179.735,0.0001287,2]
[342079067,1731413434424,-200.0,0.000129,2]
[342079068,1731413434433,-247.33446363,0.000129,2]
[342079069,1731413434443,-167.22271843,0.000129,2]
[342079070,1731413434453,-786.49,0.000129,2]
[342079071,1731413434462,-161.96932345,0.000129,2]
[342079072,1731413434472,-378.04,0.000129,2]
[342079073,1731413434482,-1007.0,0.000129,2]
[342079074,1731413434492,-749.15306141,0.000129,2]
[342079075,1731413434502,-317.04977187,0.000129,2]
[342079076,1731413434512,-151.85398926,0.00012973,2]
[342079077,1731413434521,-161.64968762,0.00012973,2]
[342079078,1731413434531,-160.91459039,0.00012973,2]
[342079079,1731413434542,-501.84107083,0.00012973,2]
[342079080,1731413434552,-160.4139663,0.00012973,2]
[342079082,1731413434562,-500.0,0.00012973,2]
[342079084,1731413434574,-324.54054217,0.00012999,2]
[342079085,1731413434583,-1000.0,0.00012999,2]
[342079086,1731413434593,-133469.15752432,0.00013,2]
[342079087,1731413434609,-50114.03792634,0.00013,2]
[342079088,1731413434655,-1345.40947005,0.00013,2]
[342079090,1731413434666,-1393.1071,0.00013,2]
[342079093,1731413434699,-441.21565105,0.00013,2]
[342079096,1731413437521,-1776.01699999,0.00013,2]
[342079097,1731413437682,-4888.22801156,0.00013,2]
[342079098,1731413437694,-1899.67251996,0.00013,2]
[342079099,1731413437705,-1941.66360995,0.00013,2]
[342079100,1731413437725,-97674.24246812,0.00013,2]
[342079101,1731413437736,-2020.0,0.00013,2]
[342079102,1731413437748,-13013.8,0.00013,2]
[342079103,1731413437834,-1368460.47128538,0.00013,2]
[342079134,1731413439420,-1758.54496596,0.00013,2]
[342079135,1731413439432,-520.3965245,0.00013,2]
[342079136,1731413439476,-66208.8611868,0.00013,2]
[342079137,1731413439750,-2068.63438604,0.00013,2]
[342079138,1731413439761,-2395.98,0.00013,2]
[342079139,1731413439786,-1978.2670529,0.00013,2]
[342079146,1731413442449,-1206.46539873,0.00013,2]
[342079158,1731413442552,-8846.74123956,0.00013,2]
[342079161,1731413442566,-1265.54122465,0.00013,2]
[342079164,1731413442579,-14006.48160907,0.00013,2]
[342079165,1731413442589,-32113.00648859,0.00013,2]
[342079166,1731413442603,-1011.11687494,0.00013,2]
[342079167,1731413442617,-1442.13832461,0.00013,2]
[342079175,1731413442715,-4368.03197191,0.00013,2]
[342079176,1731413442726,-1856.79125175,0.00013,2]
[342079177,1731413442770,-1884.89689608,0.00013,2]